bitfinex-derivatives/quotes_ETHF0:USTF0_20250709
["timestamp","ask_amount","ask_price","bid_price","bid_amount"]
[1752076075177,2.03529,2655.7,2655.6,1.42492]
[1752076075779,0.637,2655.7,2655.6,1.42492]
[1752076075981,1.38999,2655.7,2655.6,1.4249]
[1752076076175,1.38999,2655.7,2655.6,0.6719]
[1752076076478,1.38999,2655.7,2655.6,1.42492]
[1752076076675,0.75299,2655.7,2655.6,1.42492]
[1752076077779,1.38999,2655.7,2655.6,1.42492]
[1752076079282,2.64849,2655.7,2655.6,1.42492]
[1752076080682,3.96078,2655.8,2655.7,0.75299]
[1752076081076,4.59778,2655.8,2655.7,0.75299]
[1752076081281,3.96078,2655.8,2655.7,0.75299]
[1752076081484,4.59778,2655.8,2655.7,0.75299]
[1752076082184,0.75299,2655.7,2655.6,1.42491]
[1752076082386,0.75299,2655.7,2655.6,0.6719]
[1752076082684,2.11019,2655.7,2655.6,0.6719]
[1752076082882,2.11019,2655.7,2655.6,1.42492]
[1752076084485,2.76539,2655.7,2655.6,0.6719]
[1752076085784,0.75302,2655.6,2655.5,0.75304]
[1752076085981,1.39002,2655.6,2655.5,0.75304]
[1752076086481,1.39002,2655.6,2655.5,1.42494]
[1752076086690,1.39002,2655.6,2655.5,0.75304]
[1752076086984,0.6552,2655.7,2655.6,0.75302]
[1752076087285,0.6552,2655.7,2655.6,2.39192]
[1752076087286,2.04519,2655.7,2655.6,2.39192]
[1752076087481,1.40819,2655.7,2655.6,2.39192]
[1752076087683,2.04519,2655.7,2655.6,1.42492]
[1752076087882,1.40819,2655.7,2655.6,1.42492]
[1752076088084,2.04519,2655.7,2655.6,1.42492]
[1752076088486,1.40819,2655.7,2655.6,0.75302]
[1752076088686,2.04519,2655.7,2655.6,1.42492]
[1752076088880,1.40819,2655.7,2655.6,1.42492]
[1752076089084,2.04519,2655.7,2655.6,1.42492]
[1752076090389,0.75297,2655.9,2655.8,0.75293]
[1752076090581,0.75297,2655.9,2655.8,2.08763]
[1752076090782,0.75297,2655.9,2655.8,3.06073]
[1752076090985,1.40527,2655.9,2655.8,3.06073]
[1752076091389,1.40527,2655.9,2655.8,1.42543]
[1752076096495,1.40527,2655.9,2655.8,2.39853]
[1752076097490,1.40527,2655.9,2655.8,0.6725]
[1752076098093,1.40527,2655.9,2655.8,1.42546]
[1752076098996,0.6523,2655.9,2655.8,1.42546]
[1752076099195,1.40523,2655.9,2655.8,2.39856]
[1752076099394,0.6523,2655.9,2655.8,2.39856]
[1752076099594,1.40523,2655.9,2655.8,2.39856]
[1752076099796,1.40523,2655.9,2655.8,1.42546]
[1752076101796,1.40523,2655.9,2655.8,0.75296]
[1752076103098,0.75299,2655.7,2655.6,5.243613]
[1752076103297,0.75295,2655.9,2655.8,0.75296]
[1752076103496,3.15269205,2655.9,2655.8,1.42546]
[1752076103697,2.50039205,2655.9,2655.8,1.42546]
[1752076104097,3.15269205,2655.9,2655.8,1.42546]
[1752076104495,1.40525,2655.9,2655.8,1.42546]
[1752076104701,3.15269205,2655.9,2655.8,1.42546]
[1752076108399,6.36049205,2655.9,2655.8,1.42546]
[1752076108600,1.40524,2655.9,2655.8,2.39856]
[1752076108801,0.6263,2656.1,2656.0,0.75291]
[1752076109007,0.6263,2656.1,2656.0,1.42541]
[1752076109300,1.37918,2656.1,2656.0,2.39851]
[1752076109700,2.03148,2656.1,2656.0,2.39851]
[1752076109903,2.50030205,2656.2,2656.1,0.75288]
[1752076110103,1.47920965,2656.2,2656.1,2.39848]
[1752076110599,4.95524205,2656.5,2656.3,0.75279]
[1752076110807,2.91414562,2656.4,2656.3,0.75279]
[1752076111001,3.56644562,2656.4,2656.3,0.75279]
[1752076111306,2.16133562,2656.4,2656.3,0.75279]
[1752076111503,3.56642562,2656.4,2656.3,0.75279]
[1752076112104,3.56642562,2656.4,2656.1,1.6456]
[1752076112105,2.81363562,2656.4,2656.1,1.6456]
[1752076112300,0.75294,2655.9,2655.8,1.37984]
[1752076112501,0.75294,2655.9,2655.8,5.916053]
[1752076112701,0.75294,2655.9,2655.8,1.42544]
[1752076114404,0.6523,2655.9,2655.8,1.42544]
[1752076114607,0.6523,2655.9,2655.8,2.70494]
[1752076115201,0.6523,2655.9,2655.8,7.70494]
[1752076115602,3.2078,2656.2,2656.1,0.75288]
[1752076115907,3.2078,2656.2,2656.1,2.39848]
[1752076116210,3.2078,2656.2,2656.1,4.14592205]
[1752076116508,3.2078,2656.2,2656.1,2.39848]
[1752076116711,3.2078,2656.2,2656.1,3.66618]
[1752076117203,3.2078,2656.2,2656.1,8.156793]
[1752076117406,0.75282,2656.4,2656.2,0.75285]
[1752076117407,0.75283,2656.3,2656.2,0.75285]
[1752076117603,0.75283,2656.3,2656.2,1.42535]
[1752076117804,0.75283,2656.3,2656.2,2.40625]
[1752076118114,3.96062,2656.4,2656.3,0.75282]
[1752076118411,3.96062,2656.4,2656.3,1.42532]
[1752076118610,3.96062,2656.4,2656.3,2.40622]
[1752076118910,4.61292,2656.4,2656.3,2.40622]
[1752076119411,1.40512,2656.4,2656.3,2.40622]
[1752076120911,0.6523,2656.4,2656.3,2.40622]
[1752076121106,1.40509,2656.4,2656.3,2.40622]
[1752076122109,0.6523,2656.4,2656.3,2.40622]
[1752076122515,3.96052,2656.7,2656.6,0.75274]
[1752076122709,4.5285,2656.7,2656.6,1.39084]
[1752076122906,3.89,2656.7,2656.6,1.39084]
[1752076123212,4.5285,2656.7,2656.6,1.39084]
[1752076123409,5.28121,2656.7,2656.6,1.39084]
[1752076125116,2.07341,2656.7,2656.6,1.39084]
[1752076125315,5.28121,2656.7,2656.6,1.39084]
[1752076126613,5.28121,2656.7,2656.6,0.75274]
[1752076126814,5.28121,2656.7,2656.6,1.39084]
[1752076129521,5.28121,2656.7,2656.6,0.75274]
[1752076129716,5.28121,2656.7,2656.6,1.39084]
[1752076132015,4.64271,2656.7,2656.6,1.39084]
[1752076132214,4.64271,2656.7,2656.6,2.37174]
[1752076132618,5.28121,2656.7,2656.6,2.37174]
[1752076132818,4.64271,2656.7,2656.6,2.37174]
[1752076133019,5.28121,2656.7,2656.6,2.37174]
[1752076133219,2.07341,2656.7,2656.6,2.37174]
[1752076136520,5.28121,2656.7,2656.6,2.37174]
[1752076136719,0.6385,2656.7,2656.6,2.37174]
[1752076136919,3.8417,2657.0,2656.9,0.75265]
[1752076137120,3.8417,2657.0,2656.9,1.39075]
[1752076137416,46.03285,2657.0,2656.9,1.39075]
[1752076137620,46.03285,2657.0,2656.9,2.37165]
[1752076137824,5.23285,2657.0,2656.9,2.37165]
[1752076138125,5.23285,2657.0,2656.9,1.39075]
[1752076139332,5.23285,2657.0,2656.9,0.75265]
[1752076139625,0.75273,2656.7,2656.6,0.7527]
[1752076139823,1.39123,2656.7,2656.6,1.3908]
[1752076140228,0.75276,2656.5,2656.3,4.49439447]
[1752076140428,1.40089,2656.4,2656.3,5.24721447]
[1752076140623,1.40089,2656.4,2656.3,1.73372]
[1752076140825,1.40089,2656.4,2656.3,2.37182]
[1752076141123,2.03939,2656.4,2656.3,2.37182]
[1752076141325,1.2866,2656.4,2656.3,2.37182]
[1752076141523,0.75275,2656.6,2656.5,0.75277]
[1752076141724,0.6614,2656.8,2656.6,0.75271]
[1752076141928,0.6614,2656.8,2656.7,1.73361]
[1752076142128,2.0526,2656.8,2656.7,2.37171]
[1752076143328,1.4141,2656.8,2656.7,2.37171]
[1752076143528,2.0526,2656.8,2656.7,0.6381]
[1752076143727,2.0526,2656.8,2656.7,1.39081]
[1752076144025,2.0526,2656.8,2656.4,0.75277]
[1752076144026,1.88181,2656.7,2656.4,0.75277]
[1752076144231,0.75277,2656.5,2656.4,1.39087]
[1752076144424,0.75277,2656.5,2656.4,0.6381]
[1752076144727,0.75291,2656.0,2655.9,8.68309447]
[1752076144924,0.75291,2656.0,2655.9,1.619]
[1752076145120,2.50035205,2656.0,2655.9,1.619]
[1752076145726,0.75294,2655.9,2655.8,4.49439447]
[1752076146021,0.75294,2655.9,2655.5,3.96082]
[1752076146022,0.75302,2655.6,2655.5,3.96082]
[1752076146227,0.75301,2655.7,2655.6,0.75299]
[1752076146428,0.75301,2655.7,2655.6,2.03589]
[1752076147229,0.75298,2655.8,2655.7,0.75296]
[1752076147427,0.75298,2655.8,2655.7,2.50040205]
[1752076148032,1.39553,2655.9,2655.8,0.75296]
[1752076148432,1.39553,2655.9,2655.8,2.39756]
[1752076148830,3.9607,2656.1,2656.0,0.75291]
[1752076149031,0.75291,2656.0,2655.9,2.41604205]
[1752076149233,0.75291,2656.0,2655.9,4.52867205]
[1752076150233,0.75291,2656.0,2655.9,6.16727205]
[1752076151436,1.37471,2656.0,2655.9,3.6669]
[1752076151737,1.37471,2656.0,2655.9,0.6321]
[1752076152138,0.75299,2655.7,2655.6,1.6772]
[1752076152338,0.75299,2655.7,2655.6,2.3093]
[1752076152836,1.37479,2655.7,2655.6,2.3093]
[1752076153030,1.37479,2655.7,2655.6,3.06232]
[1752076153428,1.74744205,2655.8,2655.7,0.75296]
[1752076153429,0.75296,2655.8,2655.7,0.75296]
[1752076153630,0.75296,2655.8,2655.7,2.39156]
[1752076153930,0.75296,2655.8,2655.7,1.38506]
[1752076154334,0.75296,2655.8,2655.7,2.39156]
[1752076154534,1.37476,2655.8,2655.7,1.6386]
[1752076154739,1.37476,2655.8,2655.7,0.6321]
[1752076154940,0.75296,2655.8,2655.7,0.6321]
[1752076155132,1.37476,2655.8,2655.7,0.6321]
[1752076156039,1.37476,2655.8,2655.7,1.38509]
[1752076156237,1.37476,2655.8,2655.7,2.39159]
[1752076156437,1.37476,2655.8,2655.7,1.6386]
[1752076157640,1.37476,2655.8,2655.7,2.39159]
[1752076157838,0.75296,2655.8,2655.7,2.39159]
[1752076158532,3.12220205,2655.8,2655.7,0.6321]
[1752076158738,0.75305,2655.6,2655.5,0.75302]
[1752076158940,0.75305,2655.6,2655.5,1.38512]
[1752076159142,1.37485,2655.6,2655.5,2.39162]
[1752076159540,0.6218,2655.6,2655.5,2.39162]
[1752076159741,0.75302,2655.7,2655.6,0.75299]
[1752076160041,1.37482,2655.7,2655.6,2.39159]
[1752076160243,0.75302,2655.7,2655.6,2.39159]
[1752076160438,1.37482,2655.7,2655.6,2.39159]
[1752076160745,0.75305,2655.5,2655.4,1.6447]
[1752076160941,0.75305,2655.5,2655.4,2.2768]
[1752076161242,1.37485,2655.5,2655.4,1.38518]
[1752076161443,1.39845,2655.5,2655.4,1.38518]
[1752076161634,2.02025,2655.5,2655.4,1.38518]
[1752076161834,1.39845,2655.5,2655.4,1.38518]
[1752076162037,2.02025,2655.5,2655.4,1.38518]
[1752076162238,2.02025,2655.5,2655.4,0.6321]
[1752076163846,2.02025,2655.5,2655.4,1.38518]
[1752076164141,2.02025,2655.5,2655.4,0.6321]
[1752076164349,0.75311,2655.3,2655.2,1.653]
[1752076164548,0.75311,2655.3,2655.2,2.2851]
[1752076164845,1.37491,2655.3,2655.2,2.2851]
[1752076165250,0.75311,2655.3,2655.2,3.03823]
[1752076165552,0.75311,2655.3,2655.2,2.2851]
[1752076165750,1.37491,2655.3,2655.2,1.38523]
[1752076166350,0.75313,2655.2,2655.1,3.2078]
[1752076166546,0.75313,2655.2,2655.1,3.8399]
[1752076166749,1.37493,2655.2,2655.1,0.6321]
[1752076167348,1.37493,2655.2,2655.1,1.38526]
[1752076168853,1.37493,2655.2,2655.1,0.6321]
[1752076169651,0.75325,2654.9,2654.8,0.75322]
[1752076169954,0.75325,2654.8,2654.7,5.24764447]
[1752076170152,0.75325,2654.8,2654.7,1.38535]
[1752076170853,1.37505,2654.8,2654.7,1.38535]
[1752076171553,1.37505,2654.8,2654.7,0.6321]
[1752076171751,1.37505,2654.8,2654.7,1.38538]
[1752076172252,0.75323,2655.0,2654.9,0.75319]
[1752076172444,1.37503,2655.0,2654.9,4.13923205]
[1752076172643,0.75323,2655.0,2654.9,4.13923205]
[1752076173649,1.38789,2655.1,2655.0,0.75319]
[1752076173850,2.00969,2655.1,2655.0,1.38529]
[1752076174050,42.80969,2655.1,2655.0,1.38529]
[1752076174351,2.00969,2655.1,2655.0,2.39179]
[1752076174748,2.00969,2655.1,2655.0,0.6321]
[1752076174950,0.75322,2654.9,2654.8,1.75973]
[1752076175153,1.37502,2654.9,2654.8,2.39183]
[1752076175658,1.37502,2654.9,2654.8,0.6321]
[1752076175851,1.37502,2654.9,2654.8,1.38535]
[1752076178657,1.37502,2654.9,2654.8,0.6321]
[1752076180466,1.37502,2654.9,2654.5,0.75332]
[1752076180467,0.75333,2654.6,2654.5,0.75332]
[1752076180658,1.43473,2654.6,2654.5,1.38772]
[1752076180961,1.43473,2654.6,2654.5,2.39472]
[1752076181259,0.75333,2654.6,2654.5,2.39472]
[1752076181461,1.43473,2654.6,2654.5,2.39472]
[1752076181652,0.75333,2654.6,2654.5,2.39472]
[1752076181850,1.43473,2654.6,2654.5,2.39472]
[1752076182062,1.43473,2654.6,2654.5,2.39473]
[1752076182562,1.43473,2654.6,2654.5,1.38773]
[1752076182873,0.75339,2654.4,2654.3,0.75339]
[1752076183059,0.75342,2654.2,2654.1,8.45559447]
[1752076183264,0.6814,2654.4,2654.1,3.8422]
[1752076183466,0.6814,2654.4,2654.3,2.50083205]
[1752076184059,0.6814,2654.4,2654.3,3.17013205]
[1752076184263,0.6814,2654.4,2654.3,8.17013205]
[1752076184761,0.6814,2654.4,2654.3,9.43883205]
[1752076185461,0.6814,2654.4,2654.3,4.43883205]
[1752076186665,0.75332,2654.6,2654.5,0.75333]
[1752076186866,1.43472,2654.6,2654.5,0.75333]
[1752076187065,0.75332,2654.6,2654.5,0.75333]
[1752076187365,1.43472,2654.6,2654.5,0.75333]
[1752076188368,1.43472,2654.6,2654.5,1.38773]
[1752076189066,0.6814,2654.6,2654.5,2.39473]
[1752076189258,0.7533,2654.7,2654.6,0.7533]
[1752076189463,0.7533,2654.7,2654.6,1.3877]
[1752076189659,0.7533,2654.7,2654.6,2.3947]
[1752076189864,1.4347,2654.7,2654.6,2.3947]
[1752076191672,0.75322,2654.9,2654.8,0.75322]
[1752076191868,0.75322,2654.9,2654.8,3.13506205]
[1752076192166,1.43462,2654.9,2654.8,4.14206205]
[1752076192372,1.43462,2654.9,2654.8,2.39462]
[1752076192568,1.43462,2654.9,2654.8,1.38762]
[1752076192766,0.75325,2654.8,2654.7,0.75326]
[1752076192967,0.75325,2654.8,2654.7,1.38766]
[1752076193470,1.43465,2654.8,2654.7,1.38766]
[1752076193772,1.43465,2654.8,2654.7,0.6344]
[1752076194570,1.43465,2654.8,2654.7,1.38768]
[1752076195273,1.43465,2654.8,2654.7,2.39468]
[1752076195570,1.43465,2654.8,2654.7,3.04378]
[1752076195771,0.75325,2654.8,2654.7,3.04378]
[1752076197676,1.43465,2654.8,2654.7,3.04378]
[1752076197874,0.75325,2654.8,2654.7,3.04378]
[1752076198075,1.43465,2654.8,2654.7,3.04378]
[1752076198481,1.43465,2654.8,2654.7,1.38768]
[1752076198674,1.43465,2654.8,2654.7,0.6344]
[1752076198881,0.75328,2654.7,2654.6,4.49439447]
[1752076199180,1.43468,2654.7,2654.6,5.12879447]
[1752076199375,0.75328,2654.7,2654.6,5.12879447]
[1752076199576,1.43468,2654.7,2654.6,5.12879447]
[1752076199877,1.43468,2654.7,2654.6,5.88209447]
[1752076200078,1.43468,2654.7,2654.6,2.3947]
[1752076200779,0.75328,2654.7,2654.6,4.14214205]
[1752076201180,1.43468,2654.7,2654.6,4.14214205]
[1752076201381,0.75328,2654.7,2654.6,4.14214205]
[1752076201783,1.43468,2654.7,2654.6,4.14214205]
[1752076202382,3.84632,2655.0,2654.8,0.75322]
[1752076202383,0.75322,2654.9,2654.8,0.75322]
[1752076202580,0.75322,2654.9,2654.8,1.38762]
[1752076202781,1.43462,2654.9,2654.8,2.39462]
[1752076202980,0.75322,2654.9,2654.8,2.39462]
[1752076203177,0.75322,2654.9,2654.8,4.14206205]
[1752076203476,0.75322,2655.0,2654.9,0.7532]
[1752076203678,0.6636,2655.0,2654.9,2.3946]
[1752076203884,5.09037,2655.6,2655.3,0.75307]
[1752076204084,5.09037,2655.6,2655.3,1.38747]
[1752076204085,0.75311,2655.4,2655.3,1.38747]
[1752076204274,2.23762151,2655.4,2655.3,1.38747]
[1752076204477,2.91902151,2655.4,2655.3,1.38747]
[1752076204675,1.48451151,2655.4,2655.3,2.39447]
[1752076204881,3.2078,2655.6,2655.5,0.75305]
[1752076205085,0.75301,2655.7,2655.6,0.75302]
[1752076205282,0.75301,2655.7,2655.6,3.13486205]
[1752076205479,2.2377489,2655.7,2655.6,4.14186205]
[1752076205681,2.9191489,2655.7,2655.6,4.14186205]
[1752076206084,1.43441,2655.7,2655.6,4.14186205]
[1752076209288,0.6814,2655.7,2655.6,4.14186205]
[1752076209586,1.43439,2655.7,2655.6,4.14186205]
[1752076209982,0.75298,2655.8,2655.7,0.75299]
[1752076210286,0.75298,2655.8,2655.7,1.74689]
[1752076210688,4.62344,2655.9,2655.8,0.75296]
[1752076210884,3.96068,2656.2,2655.8,3.39514205]
[1752076211086,4.60888,2656.2,2656.1,0.75288]
[1752076211390,4.60888,2656.2,2656.1,2.40058]
[1752076211883,5.27048,2656.2,2656.1,2.40058]
[1752076212285,5.27048,2656.2,2656.1,0.6538]
[1752076212486,5.27048,2656.2,2656.0,0.75289]
[1752076212487,0.75288,2656.1,2656.0,0.75289]
[1752076212684,0.75296,2655.9,2655.8,0.75294]
[1752076212888,1.41456,2655.9,2655.8,1.40674]
[1752076213086,0.75296,2655.9,2655.8,1.40674]
[1752076213286,1.41456,2655.9,2655.8,2.40064]
[1752076213486,0.75296,2655.9,2655.8,2.40064]
[1752076214487,1.41456,2655.9,2655.8,2.40064]
[1752076214689,0.75296,2655.9,2655.8,1.40674]
[1752076215190,1.41456,2655.9,2655.8,1.40674]
[1752076215384,0.75296,2655.9,2655.8,1.40674]
[1752076215582,1.41456,2655.9,2655.8,1.40674]
[1752076217392,1.41456,2655.9,2655.8,0.6538]
[1752076217884,1.88249,2655.7,2655.2,5.48829447]
[1752076218085,0.75311,2655.4,2655.3,0.75309]
[1752076218287,0.75311,2655.4,2655.3,1.40689]
[1752076218482,2.05241,2655.4,2655.3,1.40689]
[1752076218687,2.05241,2655.4,2655.3,2.40079]
[1752076219594,2.05241,2655.4,2655.3,1.40689]
[1752076220193,2.05241,2655.4,2655.3,2.40079]
[1752076222793,2.05241,2655.4,2655.3,3.05429]
[1752076223595,2.05241,2655.4,2655.3,2.3012]
[1752076223795,2.05241,2655.4,2655.3,1.40691]
[1752076224094,0.75313,2655.2,2655.1,8.69609447]
[1752076224305,0.75313,2655.2,2655.1,3.8616]
[1752076224494,1.41473,2655.2,2655.1,3.8616]
[1752076224686,0.75313,2655.2,2655.1,3.8616]
[1752076224890,1.41473,2655.2,2655.1,4.61476]
[1752076225494,0.6616,2655.2,2655.1,5.60866]
[1752076225694,0.75313,2655.2,2655.1,5.60866]
[1752076226090,0.75312,2655.3,2655.2,0.75311]
[1752076226295,0.75312,2655.3,2655.2,3.81435205]
[1752076226492,0.75312,2655.3,2655.2,4.80825205]
[1752076226792,0.6377,2655.4,2655.3,0.75311]
[1752076227094,0.75305,2655.6,2655.5,0.75301]
[1752076227296,0.75305,2655.6,2655.5,1.40681]
[1752076227595,1.42871,2655.7,2655.6,0.75302]
[1752076227795,1.42871,2655.7,2655.6,4.14816205]
[1752076227995,2.09031,2655.7,2655.6,4.14816205]
[1752076229294,2.09031,2655.7,2655.6,2.40072]
[1752076230697,2.09031,2655.7,2655.6,1.40682]
[1752076230897,2.09031,2655.7,2655.6,0.75302]
[1752076231288,2.09031,2655.7,2655.6,1.40682]
[1752076231496,1.42871,2655.7,2655.6,1.40682]
[1752076231696,1.88257,2655.6,2655.2,1.6539]
[1752076231896,0.75311,2655.4,2655.3,0.75308]
[1752076232399,0.75311,2655.4,2655.3,1.40688]
[1752076234806,0.75311,2655.4,2655.3,0.75308]
[1752076235004,0.75311,2655.4,2655.3,1.40688]
[1752076235407,1.41471,2655.4,2655.3,1.40688]
[1752076235596,0.75311,2655.4,2655.3,1.40688]
[1752076236003,1.41471,2655.4,2655.3,1.40688]
[1752076236607,0.75311,2655.3,2655.2,0.75311]
[1752076236802,1.40531,2655.3,2655.2,0.75311]
[1752076237007,1.40531,2655.3,2655.2,1.40691]
[1752076237408,1.3138,2655.3,2655.2,1.40691]
[1752076237706,0.6522,2655.3,2655.2,2.42051]
[1752076237911,0.75309,2655.4,2655.3,0.75311]
[1752076238207,0.75304,2655.6,2655.5,0.75302]
[1752076238416,1.41464,2655.6,2655.5,3.15426205]
[1752076238612,1.41464,2655.6,2655.5,1.40682]
[1752076238813,0.75297,2655.9,2655.8,0.75293]
[1752076239110,0.75297,2655.9,2655.8,1.40673]
[1752076239305,0.75297,2655.9,2655.8,2.42033]
[1752076239306,1.40447,2655.9,2655.8,2.42033]
[1752076239712,0.75291,2656.0,2655.9,0.75291]
[1752076240015,0.75291,2656.0,2655.9,4.19325205]
[1752076240315,1.4064,2656.1,2656.0,0.75291]
[1752076240611,1.4064,2656.1,2656.0,1.43221]
[1752076240810,2.0579,2656.1,2656.0,1.43221]
[1752076241112,0.6535,2656.1,2656.0,2.44581]
[1752076241308,3.2078,2656.2,2656.1,0.75288]
[1752076241607,0.75285,2656.3,2656.2,0.75283]
[1752076241812,0.75285,2656.3,2656.2,1.43213]
[1752076242612,1.40435,2656.3,2656.2,1.43213]
[1752076242912,1.40435,2656.3,2656.2,2.44573]
[1752076243410,41.5528,2656.4,2656.3,0.75282]
[1752076243610,1.42638,2656.5,2656.4,0.75279]
[1752076243811,1.42638,2656.5,2656.4,1.43209]
[1752076244113,42.87788,2656.5,2656.4,2.44569]
[1752076244412,42.22638,2656.5,2656.4,2.44569]
[1752076245203,43.70284598,2656.5,2656.4,2.44569]
[1752076245406,1.47646598,2656.5,2656.4,2.44569]
[1752076245805,2.88073598,2656.5,2656.4,2.44569]
[1752076246007,2.22923598,2656.5,2656.4,2.44569]
[1752076246206,1.40427,2656.5,2656.4,2.44569]
[1752076246412,0.75285,2656.3,2656.2,0.75282]
[1752076246615,0.6496,2656.4,2656.3,0.75282]
[1752076246907,1.40239,2656.4,2656.3,0.75282]
[1752076247307,2.05389,2656.4,2656.3,0.75282]
[1752076248909,0.6515,2656.4,2656.3,0.75282]
[1752076249115,0.6515,2656.4,2656.3,2.03602]
[1752076249416,1.40429,2656.4,2656.3,2.03602]
[1752076249811,0.6515,2656.4,2656.3,2.03602]
[1752076250117,41.55276,2656.6,2656.5,0.75277]
[1752076250616,0.75276,2656.6,2656.5,0.75277]
[1752076250915,0.75276,2656.6,2656.5,1.39787]
[1752076251411,1.40426,2656.6,2656.5,0.6451]
[1752076251620,1.40426,2656.6,2656.5,1.39787]
[1752076251820,1.40426,2656.6,2656.5,3.09077]
[1752076254119,1.40426,2656.6,2656.5,2.338]
[1752076257324,1.40426,2656.6,2656.5,3.09077]
[1752076257721,1.40426,2656.6,2656.5,2.338]
[1752076258324,1.40426,2656.6,2656.5,3.09077]
[1752076259726,1.40426,2656.6,2656.5,2.338]
[1752076260121,1.40426,2656.6,2656.5,3.09077]
[1752076260323,40.8,2656.7,2656.5,2.338]
[1752076260532,0.75274,2656.7,2656.6,2.50015205]
[1752076260825,0.75274,2656.7,2656.6,5.42415205]
[1752076261024,1.40424,2656.7,2656.6,3.44034205]
[1752076261218,1.40424,2656.7,2656.6,1.6929]
[1752076261219,0.75274,2656.7,2656.6,1.6929]
[1752076261620,0.75274,2656.7,2656.6,1.43204]
[1752076261926,0.75269,2656.8,2656.7,0.75268]
[1752076262127,0.75267,2656.9,2656.8,2.44554]
[1752076262328,0.75264,2657.0,2656.9,0.75262]
[1752076262525,0.75257,2657.2,2657.1,0.7526]
[1752076262725,0.75257,2657.2,2657.1,2.4455]
[1752076263728,0.75256,2657.3,2657.2,0.75254]
[1752076264229,0.75256,2657.3,2657.2,1.6929]
[1752076264531,0.75256,2657.3,2657.2,0.6793]
[1752076264929,0.75256,2657.3,2656.7,1.0136]
[1752076264930,1.88153,2657.1,2656.7,1.0136]
[1752076265120,1.74744205,2656.8,2656.5,1.0136]
[1752076265326,0.75279,2656.4,2656.3,8.45499447]
[1752076265622,0.75279,2656.4,2656.3,5.6535]
[1752076265831,0.75279,2656.5,2656.4,0.75277]
[1752076266025,0.75279,2656.5,2656.4,2.44567]
[1752076266430,1.40429,2656.5,2656.4,1.6929]
[1752076266729,1.40429,2656.5,2656.4,2.44569]
[1752076267934,1.40429,2656.5,2656.4,1.6929]
[1752076268430,1.40429,2656.5,2656.4,2.44569]
[1752076268630,1.40429,2656.5,2656.4,1.6929]
[1752076268930,1.40429,2656.5,2656.4,2.44569]
[1752076270031,1.40429,2656.5,2656.4,1.6929]
[1752076270235,1.40429,2656.5,2656.4,2.44569]
[1752076271330,1.40429,2656.5,2656.4,1.6929]
[1752076271731,1.40429,2656.5,2656.4,0.6793]
[1752076272127,1.40429,2656.5,2656.4,2.44269]
[1752076272732,1.40429,2656.5,2656.3,3.96061]
[1752076272733,0.75279,2656.4,2656.3,3.96061]
[1752076273031,0.75279,2656.4,2656.3,5.59341]
[1752076273232,1.39179,2656.4,2656.3,5.59341]
[1752076273432,0.75279,2656.4,2656.3,5.59341]
[1752076273731,1.39179,2656.4,2656.3,5.59341]
[1752076273927,1.39179,2656.4,2656.3,3.83]
[1752076274128,0.75285,2656.2,2656.1,4.49439447]
[1752076274434,1.39185,2656.2,2656.1,0.6222]
[1752076274733,1.39185,2656.2,2656.1,1.37508]
[1752076275033,2.05055,2656.2,2656.1,1.37508]
[1752076276532,2.05055,2656.2,2656.1,0.6222]
[1752076276733,0.75288,2656.1,2656.0,3.96069]
[1752076276933,0.75288,2656.1,2656.0,4.58289]
[1752076277134,1.39188,2656.1,2656.0,4.58289]
[1752076277334,0.75288,2656.1,2656.0,4.58289]
[1752076277835,1.39188,2656.1,2656.0,4.58289]
[1752076279834,1.39188,2656.1,2656.0,3.83]
[1752076280134,0.75294,2655.9,2655.8,4.49439447]
[1752076280335,0.75296,2655.8,2655.7,8.45517447]
[1752076280536,0.6743,2655.8,2655.7,8.45517447]
[1752076280732,1.42726,2655.8,2655.7,8.32439447]
[1752076281036,0.75302,2655.6,2655.5,4.49439447]
[1752076281234,0.75305,2655.5,2655.4,7.70219447]
[1752076281437,1.39205,2655.5,2655.4,3.2078]
[1752076281733,1.39205,2655.5,2655.3,0.75309]
[1752076281734,0.75308,2655.4,2655.3,0.75309]
[1752076281925,0.75311,2655.3,2655.2,4.49439447]
[1752076282138,0.75313,2655.2,2655.1,4.49439447]
[1752076282334,1.39213,2655.2,2655.1,1.37536]
[1752076282733,0.75313,2655.2,2655.1,1.37536]
[1752076283132,1.39213,2655.2,2655.1,1.37536]
[1752076283637,0.639,2655.2,2655.1,0.6222]
[1752076283940,1.39213,2655.2,2655.1,1.37536]
[1752076284534,0.639,2655.2,2655.1,1.37536]
[1752076285440,0.639,2655.2,2655.1,6.33060205]
[1752076287532,0.639,2655.2,2655.1,7.34120205]
[1752076288037,0.639,2655.2,2655.1,5.59376]
[1752076288240,0.6743,2655.4,2655.3,0.75311]
[1752076288441,1.3133,2655.4,2655.3,1.37531]
[1752076288840,2.06638,2655.4,2655.3,1.37531]
[1752076289134,1.3133,2655.4,2655.3,1.37531]
[1752076289741,0.75313,2655.3,2655.2,0.75311]
[1752076290038,0.75313,2655.2,2655.1,3.96096]
[1752076290335,2.01263,2655.3,2655.2,0.75313]
[1752076290541,2.01263,2655.3,2655.1,3.96094]
[1752076290542,0.75313,2655.2,2655.1,3.96094]
[1752076290741,1.39213,2655.2,2655.1,4.58314]
[1752076290938,0.75313,2655.2,2655.1,4.58314]
[1752076291338,0.75312,2655.3,2655.2,0.75313]
[1752076291544,0.75312,2655.3,2655.2,1.37533]
[1752076291949,1.39212,2655.3,2655.2,1.37533]
[1752076292138,0.75312,2655.3,2655.2,1.37533]